fUST/lending_fUST_20240426
["ID","MTS","AMOUNT","RATE_DAILY","PERIOD"]
[323594416,1714099885478,-500.0,0.00058904,120]
[323594417,1714099885488,-641.72,0.00058904,120]
[323594418,1714099885498,-1597.62,0.00058904,120]
[323594419,1714099885507,-595.18,0.00058904,120]
[323594420,1714099885517,-1727.11,0.00058904,120]
[323594421,1714099885526,-1085.28,0.00058904,120]
[323594422,1714099885534,-769.34,0.00058904,120]
[323594423,1714099885544,-500.0,0.00058904,120]
[323594424,1714099885553,-500.0,0.00058904,120]
[323594425,1714099885561,-967.69,0.00058904,120]
[323594426,1714099885571,-500.0,0.00058904,120]
[323594427,1714099885580,-826.47,0.00058904,120]
[323594428,1714099885590,-500.0,0.00058904,120]
[323594429,1714099885599,-500.0,0.00058904,120]
[323594430,1714099885609,-1913.27,0.00058904,120]
[323594431,1714099885618,-1459.11,0.00058904,120]
[323594432,1714099885628,-1614.85,0.00058904,120]
[323594433,1714099885637,-1759.91,0.00058904,120]
[323594434,1714099885646,-1364.53,0.00058904,120]
[323594435,1714099885656,-611.60329095,0.00058904,120]
[323594436,1714099885666,-500.0,0.00058904,120]
[323594437,1714099885675,-882.66,0.00058904,120]
[323594438,1714099885685,-8110.34,0.00058904,120]
[323594439,1714099885694,-2998.7,0.00058904,120]
[323594440,1714099885703,-1243.4,0.00058904,120]
[323594441,1714099885713,-500.0,0.00058904,120]
[323594442,1714099885723,-568.63,0.00058904,120]
[323594443,1714099885733,-902.12,0.00058904,120]
[323594444,1714099885742,-1645.56,0.00058904,120]
[323594445,1714099885752,-10108.47,0.00058904,120]
[323594446,1714099885762,-502.62227806,0.00058904,120]
[323594447,1714099885771,-867.82,0.00058904,120]
[323594448,1714099885781,-500.0,0.00058904,120]
[323594449,1714099885790,-1106.3,0.00058904,120]
[323594450,1714099885800,-500.0,0.00058904,120]
[323594451,1714099885809,-961.27,0.00058904,120]
[323594452,1714099885819,-14214.71,0.00058904,120]
[323594453,1714099885829,-588.6,0.00058904,120]
[323594454,1714099885838,-500.0,0.00058904,120]
[323594455,1714099885847,-2011.18,0.00058904,120]
[323594456,1714099885858,-1690.05,0.00058904,120]
[323594457,1714099885868,-2570.54,0.00058904,120]
[323594458,1714099885877,-3418.88,0.00058904,21]
[323594459,1714099885887,-1241.59,0.00058904,120]
[323594460,1714099885896,-541.93,0.00058904,120]
[323594461,1714099885906,-620.31,0.00058904,120]
[323594462,1714099885916,-4286.96,0.00058904,120]
[323594463,1714099885925,-632.57,0.00058904,120]
[323594464,1714099885935,-2408.71,0.00058904,120]
[323594465,1714099885944,-1365.71,0.00058904,120]
[323594466,1714099885954,-500.0,0.00058904,120]
[323594467,1714099885963,-504.46979732,0.00058904,120]
[323594468,1714099885972,-631.83,0.00058904,120]
[323594469,1714099885982,-179.67915317,0.00058904,120]
[323594470,1714099885991,-597.63,0.00058904,120]
[323594471,1714099886001,-3900.41,0.00058904,120]
[323594472,1714099886011,-541.35,0.00058904,120]
[323594473,1714099886020,-1321.28,0.00058904,120]
[323594474,1714099886030,-500.0,0.00058904,120]
[323594475,1714099886039,-709.88,0.00058904,120]
[323594476,1714099886048,-1376.96,0.00058904,120]
[323594477,1714099886058,-1270.91,0.00058904,120]
[323594478,1714099886069,-3138.71,0.00058904,120]
[323594479,1714099886078,-876.13,0.00058904,120]
[323594480,1714099886088,-1612.5,0.00058904,120]
[323594481,1714099886097,-1259.67,0.00058904,120]
[323594482,1714099886108,-625.72,0.00058904,120]
[323594483,1714099886117,-500.0,0.00058904,120]
[323594484,1714099886127,-648.27,0.00058904,120]
[323594485,1714099886138,-500.0,0.00058904,120]
[323594486,1714099886147,-735.51,0.00058904,120]
[323594487,1714099886156,-4378.86,0.00058904,120]
[323594488,1714099886165,-2607.7,0.00059178,120]
[323594489,1714099886174,-976.68,0.00059178,120]
[323594490,1714099886185,-500.0,0.00059178,120]
[323594491,1714099886194,-512.96,0.00059178,120]
[323594492,1714099886203,-1900.81,0.00059178,120]
[323594493,1714099886212,-1543.65,0.00059178,120]
[323594494,1714099886221,-500.0,0.00059178,120]
[323594495,1714099886230,-516.59,0.00059178,2]
[323594496,1714099886239,-500.0,0.00059178,120]
[323594497,1714099886248,-641.72,0.00059178,120]
[323594498,1714099886257,-1597.62,0.00059178,120]
[323594499,1714099886266,-595.18,0.00059178,120]
[323594500,1714099886275,-1727.11,0.00059178,120]
[323594501,1714099886284,-1085.28,0.00059178,120]
[323594502,1714099886294,-769.34,0.00059178,120]
[323594503,1714099886302,-500.0,0.00059178,120]
[323594504,1714099886312,-318.31012775,0.00059178,120]
[323594505,1714099886322,-967.69,0.00059178,120]
[323594506,1714099886331,-500.0,0.00059178,120]
[323594507,1714099886340,-826.47,0.00059178,120]
[323594508,1714099886351,-500.0,0.00059178,120]
[323594509,1714099886437,-500.0,0.00059178,120]
[323594510,1714099886447,-1913.27,0.00059178,120]
[323594511,1714099886457,-1459.11,0.00059178,120]
[323594512,1714099886468,-1614.85,0.00059178,120]
[323594513,1714099886477,-1759.91,0.00059178,120]
[323594514,1714099886486,-1364.53,0.00059178,120]
[323594515,1714099886496,-500.0,0.00059178,120]
[323594516,1714099886506,-882.66,0.00059178,120]
[323594517,1714099886515,-8110.34,0.00059178,120]
[323594518,1714099886524,-2998.7,0.00059178,120]
[323594519,1714099886533,-1243.4,0.00059178,120]
[323594520,1714099886543,-500.0,0.00059178,120]
[323594521,1714099886552,-568.63,0.00059178,120]
[323594522,1714099886562,-902.12,0.00059178,120]
[323594523,1714099886571,-1645.56,0.00059178,120]
[323594524,1714099886580,-10108.47,0.00059178,120]
[323594525,1714099886590,-867.82,0.00059178,120]
[323594526,1714099886601,-261.59281189,0.00059178,120]
[323594527,1714099886609,-1106.3,0.00059178,120]
[323594528,1714099886619,-500.0,0.00059178,120]
[323594529,1714099886628,-961.27,0.00059178,120]
[323594530,1714099886638,-14214.71,0.00059178,120]
[323594531,1714099886648,-588.6,0.00059178,120]
[323594532,1714099886657,-500.0,0.00059178,120]
[323594533,1714099886667,-2011.18,0.00059178,120]
[323594534,1714099886676,-1690.05,0.00059178,120]
[323594535,1714099886686,-2570.54,0.00059178,120]
[323594536,1714099886696,-3418.88,0.00059178,21]
[323594537,1714099886706,-1241.59,0.00059178,120]
[323594538,1714099886715,-541.93,0.00059178,120]
[323594539,1714099886725,-620.31,0.00059178,120]
[323594540,1714099886735,-4286.96,0.00059178,120]
[323594541,1714099886744,-632.57,0.00059178,120]
[323594542,1714099886754,-2408.71,0.00059178,120]
[323594543,1714099886763,-1365.71,0.00059178,120]
[323594544,1714099886772,-500.0,0.00059178,120]
[323594545,1714099886781,-631.83,0.00059178,120]
[323594546,1714099886790,-597.63,0.00059178,120]
[323594547,1714099886799,-3900.41,0.00059178,120]
[323594548,1714099886810,-541.35,0.00059178,120]
[323594549,1714099886819,-1321.28,0.00059178,120]
[323594550,1714099886829,-500.0,0.00059178,120]
[323594551,1714099886839,-709.88,0.00059178,120]
[323594552,1714099886848,-1376.96,0.00059178,120]
[323594553,1714099886858,-1270.91,0.00059178,120]
[323594554,1714099886868,-3138.71,0.00059178,120]
[323594555,1714099886878,-876.13,0.00059178,120]
[323594556,1714099886887,-1612.5,0.00059178,120]
[323594557,1714099886896,-1259.67,0.00059178,120]
[323594558,1714099886906,-625.72,0.00059178,120]
[323594559,1714099886915,-500.0,0.00059178,120]
[323594560,1714099886925,-648.27,0.00059178,120]
[323594561,1714099886935,-500.0,0.00059178,120]
[323594562,1714099886944,-4378.86,0.00059178,120]
[323594563,1714099886953,-735.51,0.00059178,120]
[323594564,1714099886962,-2607.7,0.00059452,120]
[323594565,1714099886972,-976.68,0.00059452,120]
[323594566,1714099886981,-500.0,0.00059452,120]
[323594567,1714099886991,-512.96,0.00059452,120]
[323594568,1714099887000,-1900.81,0.00059452,120]
[323594569,1714099887010,-1543.65,0.00059452,120]
[323594570,1714099887019,-500.0,0.00059452,120]
[323594571,1714099887029,-516.59,0.00059452,2]
[323594572,1714099887039,-453.85404528,0.00059452,120]
[323594573,1714099887048,-641.72,0.00059452,120]
[323594574,1714099887058,-1597.62,0.00059452,120]
[323594575,1714099887067,-595.18,0.00059452,120]
[323594576,1714099887076,-1727.11,0.00059452,120]
[323594577,1714099887086,-1085.28,0.00059452,120]
[323594578,1714099887094,-769.34,0.00059452,120]
[323594579,1714099887109,-500.0,0.00059452,120]
[323594580,1714099887118,-967.69,0.00059452,120]
[323594581,1714099887128,-228.6836691,0.00059452,120]
[323594582,1714099887137,-826.47,0.00059452,120]
[323594583,1714099887148,-217.1635651,0.00059452,120]
[323594584,1714099887157,-500.0,0.00059452,120]
[323594585,1714099887167,-1913.27,0.00059452,120]
[323594586,1714099887175,-1459.11,0.00059452,120]
[323594587,1714099887184,-1614.85,0.00059452,120]
[323594588,1714099887194,-1759.91,0.00059452,120]
[323594589,1714099887204,-1364.53,0.00059452,120]
[323594590,1714099887213,-500.0,0.00059452,120]
[323594591,1714099887223,-882.66,0.00059452,120]
[323594592,1714099887232,-8110.34,0.00059452,120]
[323594593,1714099887241,-2998.7,0.00059452,120]
[323594594,1714099887251,-1243.4,0.00059452,120]
[323594595,1714099887260,-500.0,0.00059452,120]
[323594596,1714099887269,-568.63,0.00059452,120]
[323594597,1714099887279,-902.12,0.00059452,120]
[323594598,1714099887288,-1645.56,0.00059452,120]
[323594599,1714099887297,-10108.47,0.00059452,120]
[323594600,1714099887307,-867.82,0.00059452,120]
[323594601,1714099887316,-1106.3,0.00059452,120]
[323594602,1714099887325,-307.33633137,0.00059452,120]
[323594603,1714099887335,-961.27,0.00059452,120]
[323594604,1714099887344,-14214.71,0.00059452,120]
[323594605,1714099887356,-588.6,0.00059452,120]
[323594606,1714099887365,-500.0,0.00059452,120]
[323594607,1714099887375,-2011.18,0.00059452,120]
[323594608,1714099887384,-1690.05,0.00059452,120]
[323594609,1714099887394,-2570.54,0.00059452,120]
[323594610,1714099887404,-3418.88,0.00059452,21]
[323594611,1714099887413,-1241.59,0.00059452,120]
[323594612,1714099887426,-541.93,0.00059452,120]
[323594613,1714099887435,-620.31,0.00059452,120]
[323594614,1714099887445,-4286.96,0.00059452,120]
[323594615,1714099887454,-632.57,0.00059452,120]
[323594616,1714099887465,-2408.71,0.00059452,120]
[323594617,1714099887474,-1365.71,0.00059452,120]
[323594618,1714099887483,-433.80230629,0.00059452,120]
[323594619,1714099887494,-631.83,0.00059452,120]
[323594620,1714099887502,-597.63,0.00059452,120]
[323594621,1714099887511,-3900.41,0.00059452,120]
[323594622,1714099887520,-541.35,0.00059452,120]
[323594623,1714099887530,-1321.28,0.00059452,120]
[323594624,1714099887539,-500.0,0.00059452,120]
[323594625,1714099887548,-709.88,0.00059452,120]
[323594626,1714099887558,-1376.96,0.00059452,120]
[323594627,1714099887567,-1270.91,0.00059452,120]
[323594628,1714099887576,-3138.71,0.00059452,120]
[323594629,1714099887586,-876.13,0.00059452,120]
[323594630,1714099887595,-1612.5,0.00059452,120]
[323594631,1714099887607,-1259.67,0.00059452,120]
[323594632,1714099887688,-625.72,0.00059452,120]
[323594633,1714099887698,-500.0,0.00059452,120]
[323594634,1714099887707,-648.27,0.00059452,120]
[323594635,1714099887717,-500.0,0.00059452,120]
[323594636,1714099887726,-4378.86,0.00059452,120]
[323594637,1714099887735,-735.51,0.00059452,120]
[323594638,1714099887744,-2607.7,0.00059726,120]
[323594639,1714099887753,-976.68,0.00059726,120]
[323594640,1714099887762,-500.0,0.00059726,120]
[323594641,1714099887772,-512.96,0.00059726,120]
[323594642,1714099887781,-1900.81,0.00059726,120]
[323594643,1714099887791,-1543.65,0.00059726,120]
[323594644,1714099887800,-500.0,0.00059726,120]
[323594645,1714099887809,-516.59,0.00059726,2]
[323594646,1714099887819,-641.72,0.00059726,120]
[323594647,1714099887828,-1597.62,0.00059726,120]
[323594648,1714099887838,-595.18,0.00059726,120]
[323594649,1714099887847,-1727.11,0.00059726,120]
[323594650,1714099887860,-1085.28,0.00059726,120]
[323594651,1714099887868,-769.34,0.00059726,120]
[323594652,1714099887877,-461.36411641,0.00059726,120]
[323594653,1714099887886,-967.69,0.00059726,120]
[323594654,1714099887895,-826.47,0.00059726,120]
[323594655,1714099887905,-500.0,0.00059726,120]
[323594656,1714099887914,-1913.27,0.00059726,120]
[323594657,1714099887923,-1459.11,0.00059726,120]
[323594658,1714099887933,-1614.85,0.00059726,120]
[323594659,1714099887942,-1759.91,0.00059726,120]
[323594660,1714099887951,-1364.53,0.00059726,120]
[323594661,1714099887961,-647.65887226,0.00059726,120]
[323594662,1714099887970,-882.66,0.00059726,120]
[323594663,1714099887980,-8110.34,0.00059726,120]
[323594664,1714099887988,-2998.7,0.00059726,120]
[323594665,1714099887998,-1243.4,0.00059726,120]
[323594666,1714099888008,-274.9132802,0.00059726,120]
[323594667,1714099888017,-568.63,0.00059726,120]
[323594668,1714099888027,-902.12,0.00059726,120]
[323594669,1714099888037,-1645.56,0.00059726,120]
[323594670,1714099888046,-10108.47,0.00059726,120]
[323594671,1714099888056,-867.82,0.00059726,120]
[323594672,1714099888065,-1106.3,0.00059726,120]
[323594673,1714099888074,-961.27,0.00059726,120]
[323594674,1714099888084,-14214.71,0.00059726,120]
[323594675,1714099888094,-588.6,0.00059726,120]
[323594676,1714099888106,-500.0,0.00059726,120]
[323594677,1714099888115,-2011.18,0.00059726,120]
[323594678,1714099888124,-1690.05,0.00059726,120]
[323594679,1714099888134,-2570.54,0.00059726,120]
[323594680,1714099888143,-3418.88,0.00059726,21]
[323594681,1714099888152,-1241.59,0.00059726,120]
[323594682,1714099888161,-541.93,0.00059726,120]
[323594683,1714099888171,-620.31,0.00059726,120]
[323594684,1714099888181,-4286.96,0.00059726,120]
[323594685,1714099888191,-632.57,0.00059726,120]
[323594686,1714099888201,-2408.71,0.00059726,120]
[323594687,1714099888210,-1365.71,0.00059726,120]
[323594688,1714099888220,-631.83,0.00059726,120]
[323594689,1714099888230,-597.63,0.00059726,120]
[323594690,1714099888239,-3900.41,0.00059726,120]
[323594691,1714099888248,-541.35,0.00059726,120]
[323594692,1714099888257,-1321.28,0.00059726,120]
[323594693,1714099888267,-500.0,0.00059726,120]
[323594694,1714099888276,-709.88,0.00059726,120]
[323594695,1714099888286,-1376.96,0.00059726,120]
[323594696,1714099888295,-1270.91,0.00059726,120]
[323594697,1714099888304,-3138.71,0.00059726,120]
[323594698,1714099888314,-876.13,0.00059726,120]
[323594699,1714099888323,-1612.5,0.00059726,120]
[323594700,1714099888332,-1259.67,0.00059726,120]
[323594701,1714099888341,-625.72,0.00059726,120]
[323594702,1714099888354,-500.0,0.00059726,120]
[323594703,1714099888364,-648.27,0.00059726,120]
[323594704,1714099888373,-500.0,0.00059726,120]
[323594705,1714099888383,-4378.86,0.00059726,120]
[323594706,1714099888392,-2607.7,0.00059999,120]
[323594707,1714099888401,-976.68,0.00059999,120]
[323594708,1714099888410,-408.05397281,0.00059999,120]
[323594709,1714099888423,-512.96,0.00059999,120]
[323594710,1714099888432,-1900.81,0.00059999,120]
[323594711,1714099888441,-1543.65,0.00059999,120]
[323594712,1714099888450,-500.0,0.00059999,120]
[323594713,1714099888459,-516.59,0.00059999,2]
[323594714,1714099888470,-641.72,0.00059999,120]
[323594715,1714099888478,-1597.62,0.00059999,120]
[323594716,1714099888487,-595.18,0.00059999,120]
[323594717,1714099888497,-1727.11,0.00059999,120]
[323594718,1714099888506,-1085.28,0.00059999,120]
[323594719,1714099888516,-769.34,0.00059999,120]
[323594720,1714099888525,-967.69,0.00059999,120]
[323594721,1714099888534,-826.47,0.00059999,120]
[323594722,1714099888544,-324.38296523,0.00059999,120]
[323594723,1714099888554,-1913.27,0.00059999,120]
[323594724,1714099888563,-1459.11,0.00059999,120]
[323594725,1714099888573,-1614.85,0.00059999,120]
[323594726,1714099888583,-1759.91,0.00059999,120]
[323594727,1714099888593,-1364.53,0.00059999,120]
[323594728,1714099888605,-882.66,0.00059999,120]
[323594729,1714099888614,-8110.34,0.00059999,120]
[323594730,1714099888624,-2998.7,0.00059999,120]
[323594731,1714099888633,-1243.4,0.00059999,120]
[323594732,1714099888642,-568.63,0.00059999,120]
[323594733,1714099888651,-902.12,0.00059999,120]
[323594734,1714099888661,-1645.56,0.00059999,120]
[323594735,1714099888670,-10108.47,0.00059999,120]
[323594736,1714099888680,-867.82,0.00059999,120]
[323594737,1714099888689,-1106.3,0.00059999,120]
[323594738,1714099888697,-961.27,0.00059999,120]
[323594739,1714099888707,-14214.71,0.00059999,120]
[323594740,1714099888718,-588.6,0.00059999,120]
[323594741,1714099888727,-500.0,0.00059999,120]
[323594742,1714099888737,-2011.18,0.00059999,120]
[323594743,1714099888747,-1690.05,0.00059999,120]
[323594744,1714099888757,-2570.54,0.00059999,120]
[323594745,1714099888767,-3418.88,0.00059999,21]
[323594746,1714099888776,-1241.59,0.00059999,120]
[323594747,1714099888786,-541.93,0.00059999,120]
[323594748,1714099888797,-620.31,0.00059999,120]
[323594749,1714099888807,-4286.96,0.00059999,120]
[323594750,1714099888817,-632.57,0.00059999,120]
[323594751,1714099888827,-2408.71,0.00059999,120]
[323594752,1714099888837,-1365.71,0.00059999,120]
[323594753,1714099888847,-631.83,0.00059999,120]
[323594754,1714099888861,-597.63,0.00059999,120]
[323594755,1714099888871,-3900.41,0.00059999,120]
[323594756,1714099888880,-541.35,0.00059999,120]
[323594757,1714099888890,-1321.28,0.00059999,120]
[323594758,1714099888899,-227.20334179,0.00059999,120]
[323594759,1714099888909,-709.88,0.00059999,120]
[323594760,1714099888918,-1376.96,0.00059999,120]
[323594761,1714099888928,-1270.91,0.00059999,120]
[323594762,1714099888937,-3138.71,0.00059999,120]
[323594763,1714099888948,-876.13,0.00059999,120]
[323594764,1714099888957,-1259.67,0.00059999,120]
[323594765,1714099888967,-1612.5,0.00059999,120]
[323594766,1714099888977,-625.72,0.00059999,120]
[323594767,1714099888986,-390.11446727,0.00059999,120]
[323594768,1714099888996,-648.27,0.00059999,120]
[323594769,1714099889006,-500.0,0.00059999,120]
[323594770,1714099889015,-20000.0,0.0006,60]
[323594771,1714099889025,-826.76853832,0.0006,120]
[323594772,1714099889034,-2008.31798289,0.0006,60]
[323594773,1714099889043,-4600.92324295,0.0006,14]
[323594774,1714099889053,-2014.61747508,0.0006,30]
[323594775,1714099889063,-68665.70196711,0.0006,120]
[323594776,1714099889072,-672.93275725,0.0006,12]
[323594777,1714099889082,-1000.0,0.0006,2]
[323594778,1714099889090,-704.0,0.0006,120]
[323594779,1714099889100,-109605.27973472,0.0006,120]
[323594780,1714099889111,-39518.6625,0.0006,30]
[323594781,1714099889121,-2607.7,0.00060273,120]
[323594782,1714099889130,-976.68,0.00060273,120]
[323594783,1714099889139,-512.96,0.00060273,120]
[323594784,1714099889149,-500.0,0.00060273,120]
[323594785,1714099889158,-500.0,0.00060273,120]
[323594786,1714099889167,-500.0,0.00060273,120]
[323594787,1714099889177,-500.0,0.00060273,120]
[323594788,1714099889186,-500.0,0.00060273,120]
[323594789,1714099889195,-537.86112263,0.00060273,120]
[323594790,1714099889205,-1900.81,0.00060273,120]
[323594791,1714099889214,-1543.65,0.00060273,120]
[323594792,1714099889225,-167.74378824,0.00060273,120]
[323594793,1714099889235,-516.59,0.00060273,2]
[323594794,1714099889244,-500.0,0.00060273,120]
[323594795,1714099889253,-641.72,0.00060273,120]
[323594796,1714099889262,-1597.62,0.00060273,120]
[323594797,1714099889271,-595.18,0.00060273,120]
[323594798,1714099889282,-1727.11,0.00060273,120]
[323594799,1714099889292,-1085.28,0.00060273,120]
[323594800,1714099889302,-769.34,0.00060273,120]
[323594801,1714099889312,-967.69,0.00060273,120]
[323594802,1714099889322,-826.47,0.00060273,120]
[323594803,1714099889331,-1913.27,0.00060273,120]
[323594804,1714099889341,-1459.11,0.00060273,120]
[323594805,1714099889352,-1614.85,0.00060273,120]
[323594806,1714099889362,-1759.91,0.00060273,120]
[323594807,1714099889371,-1364.53,0.00060273,120]
[323594808,1714099889380,-882.66,0.00060273,120]
[323594809,1714099889390,-8110.34,0.00060273,120]
[323594810,1714099889399,-2998.7,0.00060273,120]
[323594811,1714099889410,-1243.4,0.00060273,120]
[323594812,1714099889423,-568.63,0.00060273,120]
[323594813,1714099889433,-902.12,0.00060273,120]
[323594814,1714099889442,-1645.56,0.00060273,120]
[323594815,1714099889453,-10108.47,0.00060273,120]
[323594816,1714099889463,-867.82,0.00060273,120]
[323594817,1714099889472,-1106.3,0.00060273,120]
[323594818,1714099889482,-961.27,0.00060273,120]
[323594819,1714099889491,-14214.71,0.00060273,120]
[323594820,1714099889501,-588.6,0.00060273,120]
[323594821,1714099889511,-302.3406629,0.00060273,120]
[323594822,1714099889520,-2011.18,0.00060273,120]
[323594823,1714099889529,-1690.05,0.00060273,120]
[323594824,1714099889539,-2570.54,0.00060273,120]
[323594825,1714099889549,-3418.88,0.00060273,21]
[323594826,1714099889558,-1241.59,0.00060273,120]
[323594827,1714099889568,-541.93,0.00060273,120]
[323594828,1714099889577,-620.31,0.00060273,120]
[323594829,1714099889587,-4286.96,0.00060273,120]
[323594830,1714099889596,-632.57,0.00060273,120]
[323594831,1714099889607,-2408.71,0.00060273,120]
[323594832,1714099889616,-1365.71,0.00060273,120]
[323594833,1714099889625,-631.83,0.00060273,120]
[323594834,1714099889635,-597.63,0.00060273,120]
[323594835,1714099889644,-3900.41,0.00060273,120]
[323594836,1714099889653,-541.35,0.00060273,120]
[323594837,1714099889663,-1321.28,0.00060273,120]
[323594838,1714099889672,-709.88,0.00060273,120]
[323594839,1714099889682,-1376.96,0.00060273,120]
[323594840,1714099889692,-1270.91,0.00060273,120]
[323594841,1714099889701,-3138.71,0.00060273,120]
[323594842,1714099889710,-876.13,0.00060273,120]
[323594843,1714099889720,-1259.67,0.00060273,120]
[323594844,1714099889730,-1612.5,0.00060273,120]
[323594845,1714099889740,-625.72,0.00060273,120]
[323594846,1714099889749,-648.27,0.00060273,120]
[323594847,1714099889759,-504.49498082,0.00060273,120]
[323594848,1714099889768,-1000000.0,0.0006042,120]
[323594849,1714099889778,-2607.7,0.00060547,120]
[323594850,1714099889787,-976.68,0.00060547,120]
[323594851,1714099889797,-512.96,0.00060547,120]
[323594852,1714099889807,-1900.81,0.00060547,120]
[323594853,1714099889816,-1543.65,0.00060547,120]
[323594854,1714099889826,-516.59,0.00060547,2]
[323594855,1714099889836,-641.72,0.00060547,120]
[323594856,1714099889845,-1597.62,0.00060547,120]
[323594857,1714099889855,-595.18,0.00060547,120]
[323594858,1714099889865,-1727.11,0.00060547,120]
[323594859,1714099889875,-1085.28,0.00060547,120]
[323594860,1714099889885,-769.34,0.00060547,120]
[323594861,1714099889894,-967.69,0.00060547,120]
[323594862,1714099889903,-826.47,0.00060547,120]
[323594863,1714099889913,-1913.27,0.00060547,120]
[323594864,1714099889922,-1459.11,0.00060547,120]
[323594865,1714099889931,-1614.85,0.00060547,120]
[323594866,1714099889941,-1759.91,0.00060547,120]
[323594867,1714099889951,-1364.53,0.00060547,120]
[323594868,1714099889962,-882.66,0.00060547,120]
[323594869,1714099889971,-8110.34,0.00060547,120]
[323594870,1714099889981,-1243.4,0.00060547,120]
[323594871,1714099889990,-2998.7,0.00060547,120]
[323594872,1714099889999,-568.63,0.00060547,120]
[323594873,1714099890009,-902.12,0.00060547,120]
[323594874,1714099890019,-1645.56,0.00060547,120]
[323594875,1714099890029,-10108.47,0.00060547,120]
[323594876,1714099890038,-867.82,0.00060547,120]
[323594877,1714099890048,-1106.3,0.00060547,120]
[323594878,1714099890058,-961.27,0.00060547,120]
[323594879,1714099890067,-14214.71,0.00060547,120]
[323594880,1714099890077,-588.6,0.00060547,120]
[323594881,1714099890086,-2011.18,0.00060547,120]
[323594882,1714099890096,-1690.05,0.00060547,120]
[323594883,1714099890106,-2570.54,0.00060547,120]
[323594884,1714099890115,-3418.88,0.00060547,21]
[323594885,1714099890125,-1241.59,0.00060547,120]
[323594886,1714099890138,-541.93,0.00060547,120]
[323594887,1714099890148,-620.31,0.00060547,120]
[323594888,1714099890158,-4286.96,0.00060547,120]
[323594889,1714099890168,-632.57,0.00060547,120]
[323594890,1714099890178,-2408.71,0.00060547,120]
[323594891,1714099890188,-1365.71,0.00060547,120]
[323594892,1714099890197,-631.83,0.00060547,120]
[323594893,1714099890207,-597.63,0.00060547,120]
[323594894,1714099890217,-3900.41,0.00060547,120]
[323594895,1714099890227,-541.35,0.00060547,120]
[323594896,1714099890236,-1321.28,0.00060547,120]
[323594897,1714099890247,-709.88,0.00060547,120]
[323594898,1714099890257,-1376.96,0.00060547,120]
[323594899,1714099890267,-1270.91,0.00060547,120]
[323594900,1714099890277,-3138.71,0.00060547,120]
[323594901,1714099890287,-876.13,0.00060547,120]
[323594902,1714099890297,-1612.5,0.00060547,120]
[323594903,1714099890307,-1259.67,0.00060547,120]
[323594904,1714099890317,-625.72,0.00060547,120]
[323594905,1714099890326,-648.27,0.00060547,120]
[323594906,1714099890335,-2607.7,0.00060821,120]
[323594907,1714099890345,-976.68,0.00060821,120]
[323594908,1714099890355,-512.96,0.00060821,120]
[323594909,1714099890364,-1900.81,0.00060821,120]
[323594910,1714099890374,-1543.65,0.00060821,120]
[323594911,1714099890383,-516.59,0.00060821,2]
[323594912,1714099890393,-641.72,0.00060821,120]
[323594913,1714099890404,-1597.62,0.00060821,120]
[323594914,1714099890414,-595.18,0.00060821,120]
[323594915,1714099890429,-1727.11,0.00060821,120]